[Event "*** Titled Tuesday Blitz"]
[Site "Chess.com"]
[Date "2020.05.19"]
[Round "5"]
[White "manitodeplomo"]
[Black "14Sokol88"]
[Result "1-0"]
[WhiteElo "2607"]
[BlackElo "2419"]
[TimeControl "180+1"]
[EndTime "12:57:37 PDT"]
[Termination "manitodeplomo won on time"]

1. d4 {[%clk 0:03:00.2]} 1... Nf6 {[%clk 0:02:58.2]} 2. c4 {[%clk 0:02:59.9]}
2... d6 {[%clk 0:02:58]} 3. Nc3 {[%clk 0:02:58.7]} 3... g6 {[%clk 0:02:52.4]} 4.
e4 {[%clk 0:02:58.2]} 4... Bg7 {[%clk 0:02:51.8]} 5. Be2 {[%clk 0:02:58.4]} 5...
O-O {[%clk 0:02:50.8]} 6. Nf3 {[%clk 0:02:58.8]} 6... e5 {[%clk 0:02:49.8]} 7.
d5 {[%clk 0:02:58.8]} 7... a5 {[%clk 0:02:39.1]} 8. Bg5 {[%clk 0:02:58]} 8... h6
{[%clk 0:02:34.9]} 9. Bh4 {[%clk 0:02:57.7]} 9... g5 {[%clk 0:02:34.3]} 10. Bg3
{[%clk 0:02:56.5]} 10... Nxe4 {[%clk 0:02:33.9]} 11. Nxe4 {[%clk 0:02:55.9]}
11... f5 {[%clk 0:02:34.3]} 12. Nc3 {[%clk 0:02:56.4]} 12... f4 {[%clk
0:02:32.9]} 13. Nd2 {[%clk 0:02:55.9]} 13... Nd7 {[%clk 0:02:06.2]} 14. Nde4
{[%clk 0:02:49.8]} 14... Nf6 {[%clk 0:02:05.8]} 15. O-O {[%clk 0:02:45.7]} 15...
Nxe4 {[%clk 0:02:02.3]} 16. Nxe4 {[%clk 0:02:44.9]} 16... Bf5 {[%clk 0:02:02.7]}
17. Bd3 {[%clk 0:02:33.6]} 17... Qe8 {[%clk 0:01:58.9]} 18. f3 {[%clk
0:02:30.9]} 18... fxg3 {[%clk 0:01:57.4]} 19. Nxg3 {[%clk 0:02:30.1]} 19... Bd7
{[%clk 0:01:37.9]} 20. Bc2 {[%clk 0:02:28.3]} 20... Rf4 {[%clk 0:01:32.5]} 21.
Qd3 {[%clk 0:02:26.5]} 21... Rd4 {[%clk 0:01:26.8]} 22. Qh7+ {[%clk 0:02:25.3]}
22... Kf8 {[%clk 0:01:26.9]} 23. b3 {[%clk 0:02:10.9]} 23... Qf7 {[%clk
0:01:19]} 24. Rae1 {[%clk 0:02:01.3]} 24... Qg8 {[%clk 0:01:02.5]} 25. Qxg8+
{[%clk 0:01:44.9]} 25... Kxg8 {[%clk 0:01:02.1]} 26. Bf5 {[%clk 0:01:44.8]}
26... Be8 {[%clk 0:00:54.1]} 27. Be6+ {[%clk 0:01:29.7]} 27... Kh8 {[%clk
0:00:46]} 28. Nf5 {[%clk 0:01:29.8]} 28... Rd2 {[%clk 0:00:44.6]} 29. Rf2 {[%clk
0:01:29.8]} 29... Rxf2 {[%clk 0:00:40]} 30. Kxf2 {[%clk 0:01:30.7]} 30... Bg6
{[%clk 0:00:39.4]} 31. Ke3 {[%clk 0:01:25.8]} 31... h5 {[%clk 0:00:38.4]} 32. g4
{[%clk 0:01:22.9]} 32... h4 {[%clk 0:00:36.8]} 33. Ke4 {[%clk 0:01:17.9]} 33...
Bf6 {[%clk 0:00:33.6]} 34. h3 {[%clk 0:01:16.7]} 34... b6 {[%clk 0:00:33.2]} 35.
Re3 {[%clk 0:01:11.3]} 35... Kh7 {[%clk 0:00:32]} 36. Rc3 {[%clk 0:01:09.8]}
36... Be8 {[%clk 0:00:28.9]} 37. Rc2 {[%clk 0:01:05.1]} 37... Bd8 {[%clk
0:00:27]} 38. Ne3 {[%clk 0:01:03.2]} 38... Kg7 {[%clk 0:00:25.2]} 39. Bf5 {[%clk
0:01:03.6]} 39... Kf6 {[%clk 0:00:24.6]} 40. Kd3 {[%clk 0:01:02.7]} 40... c5
{[%clk 0:00:19.5]} 41. dxc6 {[%clk 0:00:59.6]} 41... Bxc6 {[%clk 0:00:20.4]} 42.
Be4 {[%clk 0:00:59.7]} 42... Rc8 {[%clk 0:00:18.8]} 43. Bxc6 {[%clk 0:00:58.9]}
43... Rxc6 {[%clk 0:00:19.7]} 44. Ke4 {[%clk 0:00:59.1]} 44... Ke6 {[%clk
0:00:19.3]} 45. Rd2 {[%clk 0:00:55]} 45... Rc8 {[%clk 0:00:17.5]} 46. Nf5 {[%clk
0:00:49.9]} 46... Bc7 {[%clk 0:00:17.1]} 47. Rd5 {[%clk 0:00:43.6]} 47... Ra8
{[%clk 0:00:15.7]} 48. a3 {[%clk 0:00:41.1]} 48... Rc8 {[%clk 0:00:14.1]} 49.
Ng7+ {[%clk 0:00:39.6]} 49... Kf7 {[%clk 0:00:13.3]} 50. Nf5 {[%clk 0:00:39.7]}
50... Ke6 {[%clk 0:00:13.7]} 51. Ne3 {[%clk 0:00:39.8]} 51... Ra8 {[%clk
0:00:13.6]} 52. Rd3 {[%clk 0:00:36.4]} 52... Bd8 {[%clk 0:00:13.8]} 53. Nd5
{[%clk 0:00:36.5]} 53... Ra7 {[%clk 0:00:12.9]} 54. Nc3 {[%clk 0:00:36.1]} 54...
Ra8 {[%clk 0:00:12.5]} 55. Nb5 {[%clk 0:00:36.3]} 1-0

[Event "*** Titled Tuesday Blitz"]
[Site "Chess.com"]
[Date "2020.05.19"]
[Round "5"]
[White "zajka-molotok"]
[Black "PetrolulSah"]
[Result "1-0"]
[WhiteElo "2335"]
[BlackElo "2179"]
[TimeControl "180+1"]
[EndTime "12:57:38 PDT"]
[Termination "zajka-molotok won on time"]

1. d4 {[%clk 0:03:00.9]} 1... Nf6 {[%clk 0:02:58.9]} 2. c4 {[%clk 0:02:59.4]}
2... c6 {[%clk 0:02:58]} 3. Nc3 {[%clk 0:02:54.3]} 3... d5 {[%clk 0:02:57.8]} 4.
Qb3 {[%clk 0:02:46.3]} 4... dxc4 {[%clk 0:02:52.8]} 5. Qxc4 {[%clk 0:02:45.9]}
5... Nbd7 {[%clk 0:02:45.8]} 6. Nf3 {[%clk 0:02:43.1]} 6... Nb6 {[%clk
0:02:45.5]} 7. Qd3 {[%clk 0:02:42.3]} 7... Be6 {[%clk 0:02:40.1]} 8. b3 {[%clk
0:02:30.5]} 8... Nbd5 {[%clk 0:02:33.2]} 9. Nxd5 {[%clk 0:02:00.2]} 9... Bxd5
{[%clk 0:02:30.6]} 10. Nd2 {[%clk 0:01:43.6]} 10... Qa5 {[%clk 0:02:23.8]} 11.
f3 {[%clk 0:01:36.7]} 11... g6 {[%clk 0:01:53.8]} 12. e4 {[%clk 0:01:35.4]}
12... Be6 {[%clk 0:01:53.9]} 13. Be2 {[%clk 0:01:32.3]} 13... Bg7 {[%clk
0:01:50.1]} 14. O-O {[%clk 0:01:27.1]} 14... O-O {[%clk 0:01:49.7]} 15. Bb2
{[%clk 0:01:26.7]} 15... Rfd8 {[%clk 0:01:46.9]} 16. Nc4 {[%clk 0:01:22.5]}
16... Qc7 {[%clk 0:01:43.6]} 17. Qe3 {[%clk 0:01:18.7]} 17... Nh5 {[%clk
0:01:21.4]} 18. f4 {[%clk 0:00:58]} 18... Bxc4 {[%clk 0:00:50.4]} 19. Bxc4
{[%clk 0:00:53.9]} 19... c5 {[%clk 0:00:44.4]} 20. e5 {[%clk 0:00:43.5]} 20...
cxd4 {[%clk 0:00:32.6]} 21. Bxd4 {[%clk 0:00:42.9]} 21... e6 {[%clk 0:00:26.5]}
22. Rac1 {[%clk 0:00:31.9]} 22... Qd7 {[%clk 0:00:21]} 23. Bxa7 {[%clk
0:00:19.6]} 23... Bh6 {[%clk 0:00:18]} 24. g3 {[%clk 0:00:18.8]} 24... Ng7
{[%clk 0:00:17]} 25. Bb6 {[%clk 0:00:17.7]} 25... Nf5 {[%clk 0:00:16.6]} 26. Qf2
{[%clk 0:00:17]} 26... Rdc8 {[%clk 0:00:15.9]} 27. Rc2 {[%clk 0:00:15.8]} 27...
Qc6 {[%clk 0:00:15.6]} 28. Rfc1 {[%clk 0:00:13.8]} 28... Qd7 {[%clk 0:00:14.6]}
29. Bf1 {[%clk 0:00:12.9]} 29... Bf8 {[%clk 0:00:12.4]} 30. Rxc8 {[%clk
0:00:11.8]} 30... Rxc8 {[%clk 0:00:12]} 31. Rxc8 {[%clk 0:00:12.4]} 31... Qxc8
{[%clk 0:00:12.5]} 32. g4 {[%clk 0:00:10.4]} 32... Ne7 {[%clk 0:00:11.3]} 33. h3
{[%clk 0:00:08.1]} 33... Nd5 {[%clk 0:00:11.3]} 34. Bd4 {[%clk 0:00:07.9]} 34...
Qc1 {[%clk 0:00:10.4]} 35. f5 {[%clk 0:00:07.9]} 35... gxf5 {[%clk 0:00:09.3]}
36. gxf5 {[%clk 0:00:08]} 36... Qg5+ {[%clk 0:00:09]} 37. Qg2 {[%clk 0:00:07.6]}
37... Qxg2+ {[%clk 0:00:08]} 38. Bxg2 {[%clk 0:00:07.9]} 38... b5 {[%clk
0:00:04.8]} 39. fxe6 {[%clk 0:00:07.9]} 39... fxe6 {[%clk 0:00:04.8]} 40. Kf2
{[%clk 0:00:08.3]} 40... Kf7 {[%clk 0:00:04.9]} 41. Bf1 {[%clk 0:00:06.9]} 41...
b4 {[%clk 0:00:03.6]} 42. Bc4 {[%clk 0:00:06.5]} 42... Be7 {[%clk 0:00:03.3]}
43. Kf3 {[%clk 0:00:06.7]} 43... Nc7 {[%clk 0:00:02.1]} 44. Ke4 {[%clk 0:00:07]}
1-0

[Event "*** Titled Tuesday Blitz"]
[Site "Chess.com"]
[Date "2020.05.19"]
[Round "5"]
[White "vanyakuba"]
[Black "BulletMercenary"]
[Result "0-1"]
[WhiteElo "2441"]
[BlackElo "2121"]
[TimeControl "180+1"]
[EndTime "12:57:39 PDT"]
[Termination "BulletMercenary won on time"]

1. e4 {[%clk 0:02:49.7]} 1... e6 {[%clk 0:02:57]} 2. d4 {[%clk 0:02:49.7]} 2...
d5 {[%clk 0:02:57.1]} 3. exd5 {[%clk 0:02:50.6]} 3... exd5 {[%clk 0:02:57.2]} 4.
Nf3 {[%clk 0:02:51.5]} 4... Nf6 {[%clk 0:02:57.7]} 5. c4 {[%clk 0:02:52.4]} 5...
Be7 {[%clk 0:02:57.5]} 6. Nc3 {[%clk 0:02:52.7]} 6... O-O {[%clk 0:02:56.8]} 7.
cxd5 {[%clk 0:02:52.1]} 7... Nxd5 {[%clk 0:02:56.7]} 8. Bc4 {[%clk 0:02:52.8]}
8... Be6 {[%clk 0:02:56.4]} 9. Qb3 {[%clk 0:02:37.7]} 9... c6 {[%clk 0:02:28.1]}
10. Bxd5 {[%clk 0:02:02]} 10... Bxd5 {[%clk 0:02:11.5]} 11. Nxd5 {[%clk
0:02:01.3]} 11... Qxd5 {[%clk 0:02:11.1]} 12. Qxb7 {[%clk 0:02:01]} 12... Nd7
{[%clk 0:01:54.5]} 13. O-O {[%clk 0:01:44.9]} 13... Rfb8 {[%clk 0:01:34.7]} 14.
Qa6 {[%clk 0:01:45]} 14... Bf6 {[%clk 0:01:35.3]} 15. Rd1 {[%clk 0:01:33.2]}
15... Nc5 {[%clk 0:01:22]} 16. Qe2 {[%clk 0:01:25.9]} 16... Ne6 {[%clk
0:01:21.8]} 17. Be3 {[%clk 0:01:24.4]} 17... Rb4 {[%clk 0:01:17.6]} 18. Qc2
{[%clk 0:00:57.7]} 18... Rab8 {[%clk 0:01:00.7]} 19. b3 {[%clk 0:00:55.3]} 19...
g6 {[%clk 0:00:32.1]} 20. Rac1 {[%clk 0:00:52.3]} 20... R4b6 {[%clk 0:00:31.3]}
21. Qc4 {[%clk 0:00:37.6]} 21... Qa5 {[%clk 0:00:30.7]} 22. Rc2 {[%clk
0:00:34.8]} 22... Rd8 {[%clk 0:00:28.4]} 23. h3 {[%clk 0:00:33.1]} 23... Rd5
{[%clk 0:00:27.5]} 24. Qc3 {[%clk 0:00:28.7]} 24... Qxc3 {[%clk 0:00:25.2]} 25.
Rxc3 {[%clk 0:00:29.6]} 25... c5 {[%clk 0:00:24.6]} 26. Rcc1 {[%clk 0:00:20.9]}
26... cxd4 {[%clk 0:00:24.1]} 27. Bd2 {[%clk 0:00:19.2]} 27... Kg7 {[%clk
0:00:20.3]} 28. Rc4 {[%clk 0:00:15.4]} 28... Nc5 {[%clk 0:00:17.5]} 29. Bb4
{[%clk 0:00:12.1]} 29... Ne6 {[%clk 0:00:17.3]} 30. Kf1 {[%clk 0:00:08.6]} 30...
a5 {[%clk 0:00:17.6]} 31. Ba3 {[%clk 0:00:07.5]} 31... Rb7 {[%clk 0:00:16.4]}
32. Bb2 {[%clk 0:00:07.8]} 32... Rbd7 {[%clk 0:00:16.2]} 33. g4 {[%clk
0:00:07.3]} 33... h5 {[%clk 0:00:16]} 34. gxh5 {[%clk 0:00:03.7]} 34... gxh5
{[%clk 0:00:16.1]} 35. Ba3 {[%clk 0:00:03.6]} 35... Kg6 {[%clk 0:00:16]} 36. h4
{[%clk 0:00:03.9]} 36... Kf5 {[%clk 0:00:16.3]} 37. Nd2 {[%clk 0:00:03.2]} 37...
Bxh4 {[%clk 0:00:15.2]} 38. f3 {[%clk 0:00:03.3]} 38... Bf6 {[%clk 0:00:15.3]}
39. Ne4 {[%clk 0:00:03.6]} 39... Nf4 {[%clk 0:00:15.3]} 40. Bb2 {[%clk
0:00:03.4]} 40... Be5 {[%clk 0:00:14.9]} 41. Re1 {[%clk 0:00:03]} 41... d3
{[%clk 0:00:14.9]} 42. Rd1 {[%clk 0:00:03.3]} 42... Bxb2 {[%clk 0:00:14.2]} 43.
Nc5 {[%clk 0:00:03.6]} 43... Rc7 {[%clk 0:00:13.2]} 44. Ne4 {[%clk 0:00:03.3]}
44... Rxc4 {[%clk 0:00:13.1]} 45. bxc4 {[%clk 0:00:04.2]} 45... Rd8 {[%clk
0:00:13.6]} 46. Rb1 {[%clk 0:00:04.2]} 46... Be5 {[%clk 0:00:13.6]} 47. Rb5
{[%clk 0:00:04.2]} 47... d2 {[%clk 0:00:14]} 48. Nxd2 {[%clk 0:00:04.3]} 48...
Rxd2 {[%clk 0:00:14.1]} 49. Rxa5 {[%clk 0:00:05]} 49... h4 {[%clk 0:00:13.7]}
0-1

[Event "*** Titled Tuesday Blitz"]
[Site "Chess.com"]
[Date "2020.05.19"]
[Round "5"]
[White "Yuri202062"]
[Black "yobdc"]
[Result "0-1"]
[WhiteElo "2431"]
[BlackElo "2011"]
[TimeControl "180+1"]
[EndTime "12:57:39 PDT"]
[Termination "yobdc won on time"]

1. d4 {[%clk 0:03:00.9]} 1... Nf6 {[%clk 0:02:59.7]} 2. c4 {[%clk 0:03:00.5]}
2... e6 {[%clk 0:03:00.1]} 3. Nc3 {[%clk 0:03:00.4]} 3... Bb4 {[%clk 0:03:00.3]}
4. e3 {[%clk 0:03:00.5]} 4... O-O {[%clk 0:02:59.2]} 5. Bd3 {[%clk 0:02:59.3]}
5... d5 {[%clk 0:02:58.9]} 6. cxd5 {[%clk 0:02:58.9]} 6... exd5 {[%clk
0:02:58.9]} 7. Ne2 {[%clk 0:02:59]} 7... Re8 {[%clk 0:02:58.4]} 8. O-O {[%clk
0:02:57.8]} 8... c6 {[%clk 0:02:56.3]} 9. f3 {[%clk 0:02:57]} 9... Nbd7 {[%clk
0:02:41]} 10. e4 {[%clk 0:02:56.5]} 10... Nf8 {[%clk 0:02:41.1]} 11. e5 {[%clk
0:02:55.5]} 11... N6d7 {[%clk 0:02:40.6]} 12. f4 {[%clk 0:02:55.4]} 12... f6
{[%clk 0:02:27.5]} 13. Kh1 {[%clk 0:02:43.7]} 13... Nb6 {[%clk 0:02:20.9]} 14.
Ng3 {[%clk 0:02:32.4]} 14... c5 {[%clk 0:01:41.9]} 15. a3 {[%clk 0:01:53.1]}
15... Bxc3 {[%clk 0:01:41.7]} 16. bxc3 {[%clk 0:01:52.6]} 16... c4 {[%clk
0:01:41.8]} 17. Bb1 {[%clk 0:01:46.3]} 17... Bd7 {[%clk 0:01:35.2]} 18. Ra2
{[%clk 0:01:42.8]} 18... Na4 {[%clk 0:01:34.9]} 19. Bd2 {[%clk 0:01:32.8]} 19...
b5 {[%clk 0:01:33.3]} 20. Bc2 {[%clk 0:01:32.1]} 20... Rb8 {[%clk 0:01:29.1]}
21. Qf3 {[%clk 0:01:27.8]} 21... Rb6 {[%clk 0:01:15.8]} 22. Qxd5+ {[%clk
0:01:24.2]} 22... Be6 {[%clk 0:01:13]} 23. Qf3 {[%clk 0:01:18.6]} 23... Bd5
{[%clk 0:01:12.5]} 24. Be4 {[%clk 0:01:16.3]} 24... Bxe4 {[%clk 0:01:11.4]} 25.
Nxe4 {[%clk 0:01:13.3]} 25... f5 {[%clk 0:01:05.8]} 26. Nd6 {[%clk 0:01:12.5]}
26... Rxd6 {[%clk 0:01:05.9]} 27. exd6 {[%clk 0:01:12]} 27... Qxd6 {[%clk
0:01:04.3]} 28. Raa1 {[%clk 0:01:07.1]} 28... Nb2 {[%clk 0:00:50.9]} 29. Rae1
{[%clk 0:01:03.6]} 29... Rd8 {[%clk 0:00:40.3]} 30. Re5 {[%clk 0:00:59.8]} 30...
Nd3 {[%clk 0:00:18.7]} 31. Rxb5 {[%clk 0:00:54.5]} 31... Qxa3 {[%clk 0:00:18.8]}
32. Rxf5 {[%clk 0:00:53.7]} 32... Qb2 {[%clk 0:00:17.5]} 33. Qe3 {[%clk
0:00:32]} 33... a5 {[%clk 0:00:14]} 34. Qe7 {[%clk 0:00:25.4]} 34... Qb8 {[%clk
0:00:11]} 35. Rf7 {[%clk 0:00:19.2]} 35... Kh8 {[%clk 0:00:05]} 36. Rxg7 {[%clk
0:00:18]} 36... Rd7 {[%clk 0:00:02.2]} 37. Qxd7 {[%clk 0:00:05.9]} 37... Nxd7
{[%clk 0:00:01.7]} 38. Rxd7 {[%clk 0:00:06.2]} 38... a4 {[%clk 0:00:02.1]} 39.
f5 {[%clk 0:00:05.4]} 39... a3 {[%clk 0:00:02.4]} 40. Bg5 {[%clk 0:00:05.4]}
40... a2 {[%clk 0:00:02.1]} 41. Bf6+ {[%clk 0:00:04.3]} 41... Kg8 {[%clk
0:00:02.5]} 42. Rg7+ {[%clk 0:00:04]} 42... Kf8 {[%clk 0:00:02.9]} 43. Rxh7
{[%clk 0:00:04.2]} 43... Qb1 {[%clk 0:00:03]} 0-1

[Event "*** Titled Tuesday Blitz"]
[Site "Chess.com"]
[Date "2020.05.19"]
[Round "5"]
[White "GMCarbone"]
[Black "EnergeticHay"]
[Result "1-0"]
[WhiteElo "2325"]
[BlackElo "2153"]
[TimeControl "180+1"]
[EndTime "12:57:45 PDT"]
[Termination "GMCarbone won by resignation"]

1. d4 {[%clk 0:02:38.4]} 1... Nf6 {[%clk 0:02:59.3]} 2. c4 {[%clk 0:02:39.3]}
2... g6 {[%clk 0:02:59.4]} 3. g3 {[%clk 0:02:39.9]} 3... Bg7 {[%clk 0:02:59.9]}
4. Bg2 {[%clk 0:02:40.8]} 4... d6 {[%clk 0:03:00.8]} 5. Nc3 {[%clk 0:02:41.3]}
5... O-O {[%clk 0:03:01.3]} 6. Nf3 {[%clk 0:02:42.2]} 6... c5 {[%clk 0:03:01.8]}
7. O-O {[%clk 0:02:42.4]} 7... Nc6 {[%clk 0:03:02.2]} 8. e3 {[%clk 0:02:42]}
8... e5 {[%clk 0:02:58.1]} 9. d5 {[%clk 0:02:39.9]} 9... Ne7 {[%clk 0:02:58.1]}
10. a3 {[%clk 0:02:34.5]} 10... Nd7 {[%clk 0:02:47.5]} 11. Ne1 {[%clk
0:02:33.3]} 11... f5 {[%clk 0:02:47.3]} 12. Nd3 {[%clk 0:02:33.8]} 12... g5
{[%clk 0:02:26.8]} 13. f4 {[%clk 0:02:18.9]} 13... Ng6 {[%clk 0:02:26.6]} 14.
Rb1 {[%clk 0:02:13.1]} 14... gxf4 {[%clk 0:02:19.6]} 15. exf4 {[%clk 0:02:10.4]}
15... e4 {[%clk 0:02:19.9]} 16. Nf2 {[%clk 0:02:08.3]} 16... Bd4 {[%clk
0:02:15.1]} 17. Ne2 {[%clk 0:01:59.5]} 17... Bg7 {[%clk 0:01:49]} 18. Be3 {[%clk
0:01:57.5]} 18... h5 {[%clk 0:01:48.7]} 19. Nh3 {[%clk 0:01:53.1]} 19... Nf6
{[%clk 0:01:38.3]} 20. Kh1 {[%clk 0:01:47.3]} 20... Ng4 {[%clk 0:01:36.5]} 21.
Bg1 {[%clk 0:01:47.1]} 21... Bf6 {[%clk 0:01:33.4]} 22. b4 {[%clk 0:01:44.5]}
22... b6 {[%clk 0:01:32.8]} 23. Qd2 {[%clk 0:01:34.1]} 23... Kg7 {[%clk
0:01:25.4]} 24. Ng5 {[%clk 0:01:29.8]} 24... Bxg5 {[%clk 0:01:23.6]} 25. fxg5
{[%clk 0:01:30.7]} 25... h4 {[%clk 0:01:15.4]} 26. Nf4 {[%clk 0:01:30.4]} 26...
hxg3 {[%clk 0:00:59.9]} 27. h3 {[%clk 0:01:17.7]} 27... N4e5 {[%clk 0:00:51.4]}
28. Nh5+ {[%clk 0:01:07.7]} 28... Kh8 {[%clk 0:00:47]} 29. Nxg3 {[%clk
0:00:58.1]} 29... Nxc4 {[%clk 0:00:41.6]} 30. Qe2 {[%clk 0:00:56.4]} 30... Nce5
{[%clk 0:00:38.5]} 31. Qh5+ {[%clk 0:00:54.5]} 31... Kg8 {[%clk 0:00:38.8]} 32.
bxc5 {[%clk 0:00:40.3]} 32... bxc5 {[%clk 0:00:34.3]} 33. Bxe4 {[%clk
0:00:25.9]} 33... fxe4 {[%clk 0:00:20.1]} 34. Nxe4 {[%clk 0:00:26.8]} 34... Bf5
{[%clk 0:00:19.6]} 35. Nf6+ {[%clk 0:00:12.3]} 35... Rxf6 {[%clk 0:00:19.5]} 36.
gxf6 {[%clk 0:00:13.2]} 36... Bxb1 {[%clk 0:00:20]} 37. f7+ {[%clk 0:00:13.6]}
37... Kf8 {[%clk 0:00:18.7]} 38. Qh6+ {[%clk 0:00:12.7]} 38... Ke7 {[%clk
0:00:17.9]} 39. Rxb1 {[%clk 0:00:07.1]} 39... Qh8 {[%clk 0:00:17.5]} 40. Qg5+
{[%clk 0:00:06.8]} 40... Qf6 {[%clk 0:00:16.9]} 41. Rb7+ {[%clk 0:00:06.6]}
41... Nd7 {[%clk 0:00:16.2]} 42. Rxd7+ {[%clk 0:00:06.8]} 42... Kxd7 {[%clk
0:00:16.7]} 43. Qxf6 {[%clk 0:00:07.2]} 43... Nf8 {[%clk 0:00:14.5]} 44. Be3
{[%clk 0:00:07.1]} 44... Kc7 {[%clk 0:00:13.8]} 45. Bh6 {[%clk 0:00:07]} 45...
Nd7 {[%clk 0:00:14]} 46. Qe7 {[%clk 0:00:06.9]} 46... Rb8 {[%clk 0:00:13.2]} 47.
f8=Q {[%clk 0:00:06.8]} 47... Rb1+ {[%clk 0:00:13.3]} 48. Kg2 {[%clk 0:00:06.3]}
48... Rb2+ {[%clk 0:00:13.9]} 49. Kg3 {[%clk 0:00:06.8]} 49... Rb3+ {[%clk
0:00:14.1]} 50. Kg4 {[%clk 0:00:07.4]} 50... Rb4+ {[%clk 0:00:13.8]} 51. axb4
{[%clk 0:00:06.6]} 51... cxb4 {[%clk 0:00:14.7]} 1-0

[Event "*** Titled Tuesday Blitz"]
[Site "Chess.com"]
[Date "2020.05.19"]
[Round "5"]
[White "cstevens1"]
[Black "TenisMaster"]
[Result "0-1"]
[WhiteElo "2571"]
[BlackElo "2789"]
[TimeControl "180+1"]
[EndTime "12:57:46 PDT"]
[Termination "TenisMaster won on time"]

1. Nf3 {[%clk 0:02:34.7]} 1... d5 {[%clk 0:02:58.7]} 2. d4 {[%clk 0:02:34.4]}
2... Nf6 {[%clk 0:02:56.9]} 3. Bf4 {[%clk 0:02:34.4]} 3... c5 {[%clk 0:02:55.9]}
4. e3 {[%clk 0:02:34.2]} 4... Nc6 {[%clk 0:02:55.9]} 5. Nbd2 {[%clk 0:02:32]}
5... Bg4 {[%clk 0:02:55.1]} 6. c3 {[%clk 0:02:29.6]} 6... e6 {[%clk 0:02:55.1]}
7. h3 {[%clk 0:02:28.7]} 7... Bh5 {[%clk 0:02:54.1]} 8. Qb3 {[%clk 0:02:27.6]}
8... Qc8 {[%clk 0:02:53.3]} 9. dxc5 {[%clk 0:02:18.2]} 9... Bxc5 {[%clk
0:02:51]} 10. Nd4 {[%clk 0:02:18.3]} 10... e5 {[%clk 0:02:27.2]} 11. Nxc6 {[%clk
0:02:18.3]} 11... exf4 {[%clk 0:02:26.2]} 12. Nd4 {[%clk 0:02:18.7]} 12... O-O
{[%clk 0:02:10.4]} 13. Bd3 {[%clk 0:02:03.9]} 13... fxe3 {[%clk 0:02:04.4]} 14.
fxe3 {[%clk 0:02:04.8]} 14... Re8 {[%clk 0:02:00.9]} 15. Kf2 {[%clk 0:01:31.3]}
15... Qc7 {[%clk 0:01:57.5]} 16. Rae1 {[%clk 0:01:08.4]} 16... Bd6 {[%clk
0:01:49.9]} 17. Nf5 {[%clk 0:00:57]} 17... Be5 {[%clk 0:01:49.2]} 18. Nf3 {[%clk
0:00:52]} 18... Bxf3 {[%clk 0:01:37.5]} 19. Kxf3 {[%clk 0:00:46.3]} 19... g6
{[%clk 0:01:24.9]} 20. Nd4 {[%clk 0:00:43]} 20... Bg3 {[%clk 0:01:23.5]} 21.
Ref1 {[%clk 0:00:26.7]} 21... Qe5 {[%clk 0:01:14.9]} 22. Nc2 {[%clk 0:00:22.2]}
22... Ne4 {[%clk 0:01:08.5]} 23. Bxe4 {[%clk 0:00:22.2]} 23... dxe4+ {[%clk
0:01:07.1]} 24. Ke2 {[%clk 0:00:22.4]} 24... Qh5+ {[%clk 0:01:06.1]} 25. Kd2
{[%clk 0:00:22.4]} 25... Re7 {[%clk 0:00:56.3]} 26. Nd4 {[%clk 0:00:21.1]} 26...
Rc8 {[%clk 0:00:49.8]} 27. Qd1 {[%clk 0:00:20.9]} 27... Qa5 {[%clk 0:00:46.2]}
28. Qg4 {[%clk 0:00:20]} 28... Qc7 {[%clk 0:00:38.3]} 29. Kc2 {[%clk 0:00:15.9]}
29... Be5 {[%clk 0:00:37.5]} 30. Qxe4 {[%clk 0:00:12.6]} 30... b5 {[%clk
0:00:34.8]} 31. Nxb5 {[%clk 0:00:08.9]} 31... Qa5 {[%clk 0:00:33.2]} 32. Nd4
{[%clk 0:00:05.7]} 32... Qxa2 {[%clk 0:00:32.7]} 33. Qd3 {[%clk 0:00:05.5]}
33... Rb8 {[%clk 0:00:30.2]} 34. Rb1 {[%clk 0:00:04.7]} 34... Qa4+ {[%clk
0:00:30.1]} 35. Kd2 {[%clk 0:00:04.7]} 35... Rc7 {[%clk 0:00:28]} 36. Ke2 {[%clk
0:00:04.4]} 36... Re8 {[%clk 0:00:27.3]} 37. Rhd1 {[%clk 0:00:04.3]} 37... Bf4
{[%clk 0:00:24.1]} 38. e4 {[%clk 0:00:03.8]} 38... Rce7 {[%clk 0:00:23.2]} 39.
Kf1 {[%clk 0:00:03.9]} 39... Rxe4 {[%clk 0:00:22]} 40. Nf3 {[%clk 0:00:04.8]}
40... Qc6 {[%clk 0:00:20.4]} 41. Qd7 {[%clk 0:00:05.7]} 41... Qc4+ {[%clk
0:00:19.9]} 42. Qd3 {[%clk 0:00:05.8]} 42... Qb3 {[%clk 0:00:19.3]} 43. Qd7
{[%clk 0:00:06.7]} 43... Re2 {[%clk 0:00:17.8]} 44. Qd5 {[%clk 0:00:06.7]} 44...
Qc2 {[%clk 0:00:17.3]} 45. Ne1 {[%clk 0:00:03.3]} 45... Rf2+ {[%clk 0:00:15.5]}
46. Kg1 {[%clk 0:00:03.8]} 46... Qe2 {[%clk 0:00:16]} 0-1